fUSD/lending_fUSD_20240116
["ID","MTS","AMOUNT","RATE_DAILY","PERIOD"]
[311769818,1705383074495,-500.0,0.0002215,2]
[311769819,1705383074504,-500.0,0.00022151,2]
[311769820,1705383074513,-121.4719078,0.00022151,2]
[311769821,1705383074525,-378.5280922,0.00022151,2]
[311769822,1705383074534,-384.9105978,0.00022424,2]
[311769823,1705383074546,-115.0894022,0.00022424,2]
[311769824,1705383074555,-500.0,0.00022424,2]
[311769825,1705383074564,-716.98,0.00022425,2]
[311769826,1705383074573,-4241.87537333,0.00022573,2]
[311769827,1705383074584,-517.19118167,0.00022573,2]
[311769828,1705383074596,-601.015996,0.00022573,2]
[311769829,1705383074607,-346.11167018,0.00022573,2]
[311769830,1705383074619,-842.2671349,0.00022573,2]
[311769831,1705383074631,-444.31851728,0.00022573,2]
[311769832,1705383074642,-6812.01156649,0.00022573,2]
[311769833,1705383074654,-7289.2890756,0.00022573,2]
[311769834,1705383074666,-974.91771303,0.00022573,2]
[311769835,1705383074682,-301.02675859,0.00022573,2]
[311769836,1705383074694,-76.86238061,0.00022573,2]
[311769837,1705383074704,-500.0,0.00022698,2]
[311769838,1705383074714,-217.28756411,0.00022699,2]
[311769839,1705383074735,-293.30521316,0.00022424,2]
[311769840,1705383074747,-50.85523337,0.00022424,2]
[311769841,1705383074757,-263.12925204,0.00022699,2]
[311769842,1705383074769,-236.56318385,0.00022699,2]
[311769843,1705383074778,-1234.0,0.00022706,2]
[311769844,1705383074789,-716.98,0.00022973,2]
[311769845,1705383074798,-1737.45682615,0.00023,2]
[311769846,1705383074811,-3330.0,0.00023,2]
[311769847,1705383074823,-12803.61959338,0.00023,2]
[311769848,1705383074835,-16072.23028123,0.00023,2]
[311769849,1705383074847,-525.93624332,0.00023,2]
[311769850,1705383074858,-15960.0021684,0.00023,2]
[311769851,1705383074892,-449.80399366,0.0002215,2]
[311769852,1705383074903,-50.19600634,0.0002215,2]
[311769853,1705383074913,-596.51,0.00022425,2]
[311769854,1705383074923,-229.92,0.00022425,2]
[311769855,1705383074932,-1021.84106092,0.00023,2]
[311769856,1705383074944,-8491.64494076,0.00023,2]
[311769857,1705383074957,-2470.56538937,0.00023,2]
[311769858,1705383074974,-78862.81920655,0.00023,2]
[311769859,1705383074996,-2237.30399341,0.00023,2]
[311769860,1705383075015,-1243.17295712,0.00023,2]
[311769861,1705383075108,-2689.57781667,0.00023,2]
[311769862,1705383075123,-620.38351261,0.00023,2]
[311769863,1705383075135,-17015.05784702,0.00023,2]
[311769864,1705383075146,-1373.69775017,0.00023,2]
[311769865,1705383075824,-500.0,0.0002215,2]
[311769866,1705383075834,-500.0,0.00022151,2]
[311769867,1705383075843,-376.42309378,0.00022326,2]
[311769868,1705383075953,-2447.57821273,0.00022326,2]
[311769869,1705383075963,-194.21,0.00022424,2]
[311769870,1705383075973,-500.0,0.00022424,2]
[311769871,1705383075982,-500.0,0.00022425,2]
[311769872,1705383075991,-44.0854464,0.00022698,2]
[311769873,1705383076003,-240.5545536,0.00022698,2]
[311769874,1705383076014,-500.0,0.00022698,2]
[311769875,1705383076023,-214.0,0.00022706,2]
[311769876,1705383076033,-3692.4511184,0.00023,2]
[311769877,1705383076044,-4283.1475,0.00023,2]
[311769878,1705383076055,-813.23664073,0.00023,2]
[311769879,1705383076066,-722.71153054,0.00023,2]
[311769880,1705383076079,-1565.29012661,0.00023,2]
[311769881,1705383076096,-1188.89733028,0.00023,2]
[311769882,1705383076107,-15578.91038629,0.00023,2]
[311769883,1705383076120,-2418.82628629,0.00023,2]
[311769884,1705383076131,-322.8916,0.00023,2]
[311769885,1705383076486,-11990.20570655,0.00023,2]
[311769886,1705383076498,-1207.22335713,0.00023,2]
[311769887,1705383076510,-827.63640438,0.00023,2]
[311769888,1705383076521,-6796.41414578,0.00023,2]
[311769889,1705383076537,-42458.77684657,0.00023,2]
[311769890,1705383076549,-1792.70238014,0.00023,2]
[311769891,1705383076560,-263.78432302,0.00023,2]
[311769892,1705383091864,2245.7248,0.00022051,2]
[311769893,1705383099515,250.0,0.00022052,2]
[311769895,1705383135412,170.5,0.00021648,2]
[311769898,1705383139290,209.11,0.00019689,2]
[311769899,1705383139524,209.11,0.00021952,2]
[311769900,1705383172668,12121.74530715,0.00022052,2]
[311769901,1705383172695,38407.26336934,0.00022052,2]
[311769902,1705383172855,286.18002989,0.00022052,2]
[311769903,1705383173044,500.0,0.00022052,2]
[311769904,1705383178536,1096.4632242,0.00022052,2]
[311769907,1705383190666,50529.00867649,0.00022052,2]
[311769908,1705383190838,187.16420975,0.00022052,2]
[311769909,1705383194499,821.60823198,0.00022052,2]
[311769910,1705383203039,500.0,0.00022052,2]
[311769917,1705383224670,50529.00867649,0.00022052,2]
[311769923,1705383248674,24625.15872489,0.00022052,2]
[311769940,1705383281991,367.69,0.00021563,2]
[311769941,1705383285539,164.19,0.00021771,2]
[311769946,1705383304059,382.3,0.00021538,2]
[311769949,1705383329094,157.52,0.00021521,2]
[311769950,1705383329507,157.52,0.0002179,2]
[311769951,1705383329737,157.52,0.00022059,2]
[311769952,1705383333249,563.56,0.00021501,2]
[311769953,1705383340413,196.69,0.00021501,2]
[311769959,1705383364694,207.0,0.00021943,2]
[311769968,1705383401295,956.84,0.00021041,7]
[311769974,1705383410362,250.0,0.00021918,2]
[311769975,1705383423587,23900.0,0.00021462,2]
[311769981,1705383441296,403.58716961,0.0002205,2]
[311770005,1705383520759,263.49,0.00021406,2]
[311770010,1705383550263,158.47,0.00021567,2]
[311770011,1705383550520,158.47,0.00021848,2]
[311770012,1705383584046,151.40116,0.00022059,3]
[311770013,1705383586856,151.40116,0.00022059,3]
[311770014,1705383587552,151.40116,0.00022059,3]
[311770015,1705383588171,151.40116,0.00022059,3]
[311770016,1705383588763,151.40116,0.00022059,3]
[311770017,1705383589307,151.40116,0.00022059,3]
[311770018,1705383589878,151.40116,0.00022059,3]
[311770019,1705383590435,151.40116,0.00022059,3]
[311770020,1705383591024,151.40116,0.00022059,3]
[311770021,1705383592163,151.40116,0.00022059,3]
[311770022,1705383603733,151.40116,0.00022059,3]
[311770023,1705383604147,151.40116,0.00022059,3]
[311770024,1705383604627,151.40116,0.00022059,3]
[311770025,1705383605176,151.40116,0.00022059,3]
[311770026,1705383605672,151.40116,0.00022059,3]
[311770027,1705383606205,151.40116,0.00022059,3]
[311770028,1705383606676,151.40116,0.00022059,3]
[311770029,1705383615356,151.40116,0.00022059,3]
[311770030,1705383629069,250.0,0.00021369,2]
[311770031,1705383629313,152.40116,0.00022059,3]
[311770032,1705383637267,200.0,0.00021365,2]
[311770033,1705383714328,203.53,0.00019447,2]
[311770034,1705383714541,203.53,0.00021711,2]
[311770035,1705383731326,365.81,0.00021351,2]
[311770036,1705383752056,176.89,0.00021353,2]
[311770037,1705383780102,154.27,0.00021349,2]
[311770038,1705383780488,154.27,0.00021513,2]
[311770039,1705383780707,154.27,0.00021677,2]
[311770040,1705383780933,154.27,0.00021842,2]
[311770041,1705383781154,154.27,0.00022006,2]
[311770042,1705383802931,2000.0,0.00021711,2]
[311770043,1705383804826,155.71435147,0.00022006,2]
[311770044,1705383833019,2000.0,0.00021327,2]
[311770045,1705383837865,549.15,0.00021327,2]
[311770046,1705383866626,383.51,0.00021344,2]
[311770047,1705383872013,23900.0,0.00021344,2]
[311770048,1705383876782,200.0,0.00021345,2]
[311770049,1705383884456,165.35,0.00021558,2]
[311770050,1705383900375,150.0,0.00021345,2]
[311770051,1705383922762,353.1387734,0.00022049,2]
[311770052,1705383929438,171.77,0.00016712,2]
[311770053,1705383938559,250.0,0.00021918,2]
[311770054,1705383965258,2157.63,0.00021331,2]
[311770055,1705384011781,296.63,0.00021329,2]
[311770056,1705384030828,300.0,0.000216,7]
[311770057,1705384032901,600.0,0.000217,7]
[311770058,1705384035109,900.0,0.000218,7]
[311770059,1705384037210,1300.0,0.000219,7]
[311770060,1705384079718,299.6565,0.00022047,2]
[311770061,1705384091996,158.13,0.00021464,2]
[311770062,1705384092418,158.13,0.00021688,2]
[311770063,1705384092627,158.13,0.00021911,2]
[311770064,1705384096321,250.0,0.00021317,2]
[311770065,1705384179535,409.89321911,0.00022048,2]
[311770066,1705384192023,344.45520002,0.00022,2]
[311770067,1705384222446,593.61809178,0.0002205,2]
[311770068,1705384226876,390.75,0.00021291,2]
[311770069,1705384231370,-501.28849694,0.00022109,2]
[311770070,1705384231380,-150.0,0.0002211,2]
[311770071,1705384231389,-158.13,0.00022135,2]
[311770072,1705384231398,-422.27364881,0.00022136,2]
[311770073,1705384231408,-79.92519692,0.00022145,2]
[311770074,1705384231492,-70.07480308,0.00022145,2]
[311770075,1705384231501,-150.0,0.00022145,2]
[311770076,1705384231511,-111.99441011,0.00022145,2]
[311770077,1705384231562,-188.00558989,0.00022145,2]
[311770078,1705384231572,-130.97825187,0.00022146,2]
[311770079,1705384231584,-660.805318,0.00022146,2]
[311770080,1705384231595,-1572.96399541,0.00022146,2]
[311770081,1705384231612,-17923.10423926,0.00022146,2]
[311770082,1705384231649,-358.09149618,0.00022146,2]
[311770143,1705384234213,216.37,0.00019417,2]
[311770144,1705384234305,216.37,0.00021681,2]
[311770148,1705384237385,-52852.21196491,0.00022146,2]
[311770149,1705384237446,-41919.96803051,0.00022146,2]
[311770150,1705384237461,-25046.60070967,0.00022147,2]
[311770151,1705384237509,-35594.65809535,0.00022147,2]
[311770152,1705384237520,-14148.20059461,0.00022147,2]
[311770153,1705384237530,-724.61,0.00022147,2]
[311770154,1705384237540,-550.27,0.00022147,2]
[311770155,1705384237549,-500.0,0.00022147,2]
[311770156,1705384237559,-500.0,0.00022147,2]
[311770157,1705384237569,-538.68,0.00022147,2]
[311770158,1705384237578,-554.0,0.00022147,2]
[311770159,1705384237587,-1029.75541454,0.00022148,2]
[311770160,1705384237596,-1779.35248034,0.00022148,2]
[311770161,1705384237605,-523.43271801,0.00022148,2]
[311770162,1705384237614,-162.31787417,0.00022148,2]
[311770163,1705384237624,-500.0,0.00022148,2]
[311770164,1705384237633,-500.0,0.00022148,2]
[311770177,1705384237916,-500.0,0.00022148,2]
[311770179,1705384237928,-500.0,0.00022148,2]
[311770181,1705384237940,-500.0,0.00022148,2]
[311770183,1705384237960,-500.0,0.00022148,2]
[311770185,1705384237969,-500.0,0.00022148,2]
[311770187,1705384237978,-500.0,0.00022148,2]
[311770189,1705384237987,-500.0,0.00022148,2]
[311770191,1705384237997,-500.0,0.00022148,2]
[311770193,1705384238006,-500.0,0.00022148,2]
[311770195,1705384238016,-500.0,0.00022148,2]
[311770197,1705384238025,-500.0,0.00022148,2]
[311770199,1705384238036,-500.0,0.00022148,2]
[311770201,1705384238045,-500.0,0.00022148,2]
[311770203,1705384238055,-500.0,0.00022148,2]
[311770205,1705384238065,-500.0,0.00022148,2]
[311770207,1705384238074,-500.0,0.00022148,2]
[311770209,1705384238083,-500.0,0.00022148,2]
[311770211,1705384238092,-500.0,0.00022148,2]
[311770213,1705384238102,-500.0,0.00022148,2]
[311770215,1705384238111,-500.0,0.00022148,2]
[311770217,1705384238120,-817.44,0.00022148,2]
[311770219,1705384238129,-500.0,0.00022148,2]
[311770221,1705384238138,-500.0,0.00022148,2]
[311770223,1705384238148,-500.0,0.00022148,2]
[311770225,1705384238157,-500.0,0.00022148,5]
[311770227,1705384238167,-572.45,0.00022148,2]
[311770229,1705384238177,-500.0,0.00022148,2]
[311770231,1705384238186,-500.0,0.00022148,2]
[311770233,1705384238195,-6396.96,0.00022148,2]
[311770236,1705384238205,-500.0,0.00022148,2]
[311770238,1705384238214,-500.0,0.00022148,2]
[311770240,1705384238224,-500.0,0.00022148,2]
[311770242,1705384238233,-9892.67,0.00022148,2]
[311770244,1705384238242,-512.72,0.00022148,2]
[311770246,1705384238252,-500.0,0.00022148,2]
[311770248,1705384238261,-510.48,0.00022148,2]
[311770250,1705384238270,-500.0,0.00022148,2]
[311770252,1705384238280,-1373.3,0.00022148,2]
[311770253,1705384238289,-1446.59,0.00022148,2]
[311770255,1705384238298,-500.0,0.00022148,2]
[311770257,1705384238307,-500.0,0.00022148,2]
[311770259,1705384238318,-1283.05,0.00022148,2]
[311770261,1705384238327,-1084.57,0.00022148,2]
[311770263,1705384238336,-383.65639199,0.00022148,2]
[311770265,1705384238345,-500.0,0.00022148,2]
[311770267,1705384238356,-511.91,0.00022148,2]
[311770269,1705384238365,-500.0,0.00022148,2]
[311770271,1705384238375,-500.0,0.00022148,2]
[311770273,1705384238384,-500.0,0.00022148,2]
[311770275,1705384238393,-500.0,0.00022148,2]
[311770277,1705384238402,-5432.58,0.00022148,2]
[311770279,1705384238412,-500.0,0.00022148,2]
[311770281,1705384238421,-3291.72,0.00022148,2]
[311770283,1705384238430,-500.0,0.00022148,2]
[311770285,1705384238440,-500.0,0.00022148,2]
[311770287,1705384238450,-500.0,0.00022148,2]
[311770289,1705384238459,-642.24,0.00022148,2]
[311770291,1705384238468,-500.0,0.00022148,2]
[311770293,1705384238477,-16986.28,0.00022148,2]
[311770295,1705384238486,-500.0,0.00022148,2]
[311770297,1705384238496,-500.0,0.00022148,2]
[311770299,1705384238505,-500.0,0.00022148,2]
[311770301,1705384238515,-1360.97,0.00022148,2]
[311770303,1705384238525,-500.0,0.00022148,2]
[311770305,1705384238534,-770.78,0.00022148,2]
[311770307,1705384238543,-500.0,0.00022148,2]
[311770309,1705384238552,-1230.75,0.00022148,2]
[311770311,1705384238561,-500.0,0.00022148,2]
[311770313,1705384238572,-500.0,0.00022148,2]
[311770315,1705384238582,-500.0,0.00022148,2]
[311770317,1705384238591,-500.0,0.00022148,2]
[311770319,1705384238600,-1054.41,0.00022148,2]
[311770321,1705384238609,-1560.12,0.00022148,2]
[311770323,1705384238619,-854.04,0.00022148,2]
[311770325,1705384238628,-500.0,0.00022148,2]
[311770327,1705384238637,-500.0,0.00022148,2]
[311770329,1705384238647,-500.0,0.00022148,2]
[311770331,1705384238657,-500.0,0.00022148,2]
[311770333,1705384238666,-500.0,0.00022148,2]
[311770335,1705384238676,-500.0,0.00022148,2]
[311770337,1705384238685,-2424.1,0.00022148,2]
[311770339,1705384238695,-1255.23,0.00022148,2]
[311770341,1705384238704,-1106.89,0.00022148,2]
[311770343,1705384238714,-656.19,0.00022148,2]
[311770345,1705384238727,-500.0,0.00022148,2]
[311770348,1705384238742,-500.0,0.00022148,2]
[311770349,1705384238751,-500.0,0.00022148,2]
[311770351,1705384238761,-500.0,0.00022148,2]
[311770353,1705384238771,-500.0,0.00022148,2]
[311770356,1705384238780,-836.27,0.00022148,2]
[311770357,1705384238790,-500.0,0.00022148,2]
[311770360,1705384238799,-500.0,0.00022148,2]
[311770362,1705384238808,-956.94,0.00022148,2]
[311770363,1705384238818,-500.0,0.00022148,2]
[311770365,1705384238827,-500.0,0.00022148,2]
[311770367,1705384238837,-598.05,0.00022148,2]
[311770369,1705384238846,-899.51,0.00022148,2]
[311770371,1705384238855,-500.0,0.00022148,2]
[311770373,1705384238865,-500.0,0.00022148,2]
[311770375,1705384238874,-511.01,0.00022148,2]
[311770377,1705384238883,-2036.34,0.00022148,2]
[311770379,1705384238892,-1340.26,0.00022148,2]
[311770381,1705384238901,-2130.1,0.00022148,2]
[311770383,1705384238910,-500.0,0.00022148,2]
[311770385,1705384238920,-801.61,0.00022148,2]
[311770387,1705384238929,-500.0,0.00022148,2]
[311770389,1705384238938,-500.0,0.00022148,2]
[311770392,1705384238948,-500.0,0.00022148,2]
[311770394,1705384238958,-500.0,0.00022148,2]
[311770396,1705384238967,-503.37,0.00022148,2]
[311770398,1705384238976,-500.0,0.00022148,2]
[311770400,1705384238986,-1005.16,0.00022148,2]
[311770402,1705384238995,-3319.37,0.00022148,2]
[311770404,1705384239004,-500.0,0.00022148,2]
[311770405,1705384239013,-409.70551964,0.00022148,2]
[311770406,1705384239022,-500.0,0.00022148,2]
[311770407,1705384239031,-1017.46,0.00022148,2]
[311770408,1705384239040,-812.76,0.00022148,2]
[311770409,1705384239049,-1047.83,0.00022148,2]
[311770410,1705384239058,-500.0,0.00022148,2]
[311770411,1705384239066,-500.0,0.00022148,2]
[311770412,1705384239076,-2010.35,0.00022148,2]
[311770413,1705384239084,-500.0,0.00022148,2]
[311770414,1705384239093,-500.0,0.00022148,2]
[311770416,1705384239103,-956.2,0.00022148,2]
[311770418,1705384239113,-500.95945279,0.00022148,2]
[311770420,1705384239122,-500.0,0.00022148,2]
[311770422,1705384239131,-500.0,0.00022148,2]
[311770424,1705384239140,-3354.75,0.00022148,2]
[311770426,1705384239149,-1583.46,0.00022148,2]
[311770428,1705384239159,-500.0,0.00022148,2]
[311770430,1705384239168,-923.96,0.00022148,2]
[311770432,1705384239178,-500.0,0.00022148,2]
[311770434,1705384239187,-6046.57,0.00022148,2]
[311770436,1705384239196,-1654.42,0.00022148,2]
[311770438,1705384239206,-2288.39,0.00022148,2]
[311770440,1705384239215,-500.0,0.00022148,2]
[311770442,1705384239224,-515.94,0.00022148,2]
[311770444,1705384239233,-500.0,0.00022148,2]
[311770446,1705384239243,-1139.14,0.00022148,2]
[311770448,1705384239252,-500.0,0.00022148,2]
[311770450,1705384239262,-541.78,0.00022148,2]
[311770452,1705384239271,-500.0,0.00022148,2]
[311770454,1705384239280,-1102.8,0.00022148,2]
[311770456,1705384239290,-742.9,0.00022148,2]
[311770458,1705384239300,-378.17347188,0.00022148,2]
[311770460,1705384239309,-500.0,0.00022148,2]
[311770462,1705384239318,-901.15,0.00022148,2]
[311770464,1705384239327,-500.0,0.00022148,2]
[311770466,1705384239336,-500.0,0.00022148,2]
[311770468,1705384239346,-651.35,0.00022148,2]
[311770470,1705384239355,-500.0,0.00022148,2]
[311770472,1705384239364,-1633.52,0.00022148,2]
[311770474,1705384239373,-511.41606142,0.00022148,2]
[311770476,1705384239382,-500.0,0.00022148,2]
[311770478,1705384239392,-500.0,0.00022148,2]
[311770480,1705384239401,-1438.2,0.00022148,2]
[311770482,1705384239410,-3499.46,0.00022148,2]
[311770484,1705384239419,-82364.29081058,0.00022149,2]
[311770486,1705384239429,-500.0,0.00022149,2]
[311770488,1705384239438,-731.3,0.00022149,2]
[311770490,1705384239448,-538.67,0.00022149,2]
[311770492,1705384239461,-636.08,0.00022149,2]
[311770494,1705384239470,-500.0,0.00022149,2]
[311770496,1705384239479,-500.0,0.00022149,2]
[311770498,1705384239489,-500.0,0.00022149,2]
[311770500,1705384239497,-500.0,0.00022149,2]
[311770502,1705384239506,-500.0,0.00022149,2]
[311770504,1705384239516,-500.0,0.00022149,2]
[311770506,1705384239526,-640.13,0.00022149,2]
[311770508,1705384239537,-500.0,0.00022149,2]
[311770510,1705384239546,-500.0,0.00022149,2]
[311770512,1705384239555,-652.16,0.00022149,2]
[311770514,1705384239565,-500.0,0.00022149,2]
[311770516,1705384239575,-559.21,0.00022149,2]
[311770518,1705384239584,-500.0,0.00022149,2]
[311770520,1705384239593,-533.28,0.00022149,2]
[311770522,1705384239603,-520.8,0.00022149,2]
[311770524,1705384239613,-500.0,0.00022149,2]
[311770526,1705384239622,-605.59648522,0.00022149,2]
[311770528,1705384239631,-500.0,0.00022149,2]
[311770530,1705384239641,-500.0,0.00022149,2]
[311770532,1705384239650,-500.0,0.00022149,2]
[311770534,1705384239660,-532.48,0.00022149,2]
[311770536,1705384239669,-500.0,0.00022149,2]
[311770538,1705384239679,-560.31,0.00022149,2]
[311770540,1705384239687,-517.27,0.00022149,2]
[311770542,1705384239696,-500.0,0.00022149,2]
[311770544,1705384239705,-657.14,0.00022149,2]
[311770546,1705384239714,-624.96,0.00022149,2]
[311770548,1705384239723,-500.0,0.00022149,2]
[311770550,1705384239734,-345.41880371,0.00022149,2]
[311770552,1705384239744,-500.0,0.00022149,2]
[311770554,1705384239752,-529.67,0.00022149,2]
[311770556,1705384239761,-502.51,0.00022149,2]
[311770559,1705384239771,-500.0,0.00022149,2]
[311770562,1705384239780,-541.21,0.00022149,2]
[311770565,1705384239790,-500.0,0.00022149,2]
[311770568,1705384239799,-620.76,0.00022149,2]
[311770571,1705384239808,-500.0,0.00022149,2]
[311770574,1705384239818,-500.0,0.00022149,2]
[311770577,1705384239827,-500.0,0.00022149,2]
[311770580,1705384239837,-500.0,0.00022149,2]
[311770582,1705384239846,-702.95,0.00022149,2]
[311770584,1705384239855,-500.0,0.00022149,2]
[311770586,1705384239864,-500.0,0.00022149,2]
[311770588,1705384239873,-542.47,0.00022149,2]
[311770590,1705384239882,-503.28,0.00022149,2]
[311770592,1705384239891,-500.0,0.00022149,2]
[311770594,1705384239901,-500.0,0.00022149,2]
[311770596,1705384239910,-500.0,0.00022149,2]
[311770598,1705384239919,-519.88,0.00022149,2]
[311770600,1705384239928,-500.0,0.00022149,2]
[311770602,1705384239938,-500.0,0.00022149,2]
[311770604,1705384239947,-577.49,0.00022149,2]
[311770606,1705384239957,-500.0,0.00022149,2]
[311770608,1705384239966,-580.52,0.00022149,2]
[311770611,1705384239976,-500.0,0.00022149,2]
[311770613,1705384239985,-543.71,0.00022149,2]
[311770615,1705384239995,-500.0,0.00022149,2]
[311770617,1705384240004,-500.0,0.00022149,2]
[311770619,1705384240013,-189.34,0.00022149,2]
[311770621,1705384240022,-500.0,0.00022149,2]
[311770623,1705384240032,-500.0,0.00022149,2]
[311770625,1705384240041,-500.0,0.00022149,2]
[311770627,1705384240051,-500.0,0.00022149,2]
[311770629,1705384240060,-500.0,0.00022149,2]
[311770631,1705384240071,-545.97,0.00022149,2]
[311770633,1705384240080,-500.0,0.00022149,2]
[311770635,1705384240089,-573.99,0.00022149,2]
[311770637,1705384240098,-2307.4,0.00022149,2]
[311770639,1705384240108,-500.0,0.00022149,2]
[311770641,1705384240117,-4606.58,0.00022149,2]
[311770643,1705384240126,-597.49,0.00022149,2]
[311770645,1705384240135,-692.02,0.00022149,2]
[311770647,1705384240144,-5828.84,0.00022149,2]
[311770649,1705384240153,-500.0,0.00022149,2]
[311770651,1705384240162,-965.89,0.00022149,2]
[311770653,1705384240171,-500.0,0.00022149,2]
[311770655,1705384240180,-494.51390555,0.00022149,2]
[311770657,1705384240189,-542.2,0.00022149,2]
[311770659,1705384240198,-503.84,0.00022149,2]
[311770661,1705384240207,-500.0,0.00022149,2]
[311770663,1705384240216,-3788.18,0.00022149,2]
[311770665,1705384240225,-500.0,0.00022149,2]
[311770667,1705384240233,-500.0,0.00022149,2]
[311770669,1705384240242,-3513.41,0.00022149,2]
[311770671,1705384240251,-500.0,0.00022149,2]
[311770673,1705384240260,-500.0,0.00022149,2]
[311770675,1705384240269,-3013.25,0.00022149,2]
[311770677,1705384240278,-787.69,0.00022149,2]
[311770679,1705384240287,-985.5,0.00022149,2]
[311770681,1705384240295,-2770.85,0.00022149,2]
[311770683,1705384240304,-500.0,0.00022149,2]
[311770684,1705384240313,-500.0,0.00022149,2]
[311770686,1705384240324,-500.0,0.00022149,2]
[311770688,1705384240334,-7462.29,0.00022149,2]
[311770690,1705384240343,-831.28,0.00022149,2]
[311770692,1705384240352,-500.0,0.00022149,2]
[311770694,1705384240361,-845.09,0.00022149,2]
[311770696,1705384240370,-2576.91,0.00022149,2]
[311770699,1705384240379,-2320.22,0.00022149,2]
[311770700,1705384240388,-500.0,0.00022149,2]
[311770702,1705384240397,-547.06,0.00022149,2]
[311770705,1705384240406,-500.0,0.00022149,2]
[311770707,1705384240415,-1270.0,0.00022149,2]
[311770709,1705384240424,-657.97,0.00022149,2]
[311770710,1705384240434,-509.58,0.00022149,2]
[311770712,1705384240443,-2098.9,0.00022149,2]
[311770715,1705384240452,-2574.35,0.00022149,2]
[311770717,1705384240463,-500.0,0.00022149,2]
[311770718,1705384240472,-790.52305778,0.00022149,2]
[311770721,1705384240482,-500.0,0.00022149,2]
[311770723,1705384240491,-500.0,0.00022149,2]
[311770725,1705384240500,-4678.98,0.00022149,2]
[311770727,1705384240509,-575.29,0.00022149,2]
[311770729,1705384240519,-500.0,0.00022149,2]
[311770731,1705384240528,-1210.84,0.00022149,2]
[311770733,1705384240538,-698.05,0.00022149,2]
[311770734,1705384240548,-3263.35,0.00022149,2]
[311770736,1705384240558,-500.0,0.00022149,2]
[311770738,1705384240568,-620.95,0.00022149,2]
[311770741,1705384240577,-500.0,0.00022149,2]
[311770743,1705384240587,-2075.26,0.00022149,2]
[311770744,1705384240595,-598.52,0.00022149,2]
[311770747,1705384240605,-514.13,0.00022149,2]
[311770749,1705384240614,-1065.16,0.00022149,2]
[311770751,1705384240623,-1300.85,0.00022149,2]
[311770753,1705384240632,-500.0,0.00022149,2]
[311770754,1705384240642,-500.0,0.00022149,2]
[311770757,1705384240652,-705.41,0.00022149,2]
[311770759,1705384240661,-1032.79,0.00022149,2]
[311770761,1705384240670,-912.57,0.00022149,2]
[311770763,1705384240679,-874.61,0.00022149,2]
[311770765,1705384240689,-4376.83,0.00022149,2]
[311770767,1705384240698,-685.53,0.00022149,2]
[311770769,1705384240708,-3315.8,0.00022149,2]
[311770771,1705384240717,-1136.47,0.00022149,2]
[311770773,1705384240727,-500.0,0.00022149,2]
[311770775,1705384240736,-3161.92,0.00022149,2]
[311770777,1705384240745,-500.0,0.00022149,2]
[311770779,1705384240754,-500.0,0.00022149,2]
[311770781,1705384240763,-500.0,0.00022149,2]
[311770783,1705384240772,-500.0,0.00022149,2]